bitfinex/quotes_SOLUSD_20241125
["timestamp","ask_amount","ask_price","bid_price","bid_amount"]
[1732540575685,16.5229,249.06,248.98,18.5959451]
[1732540575865,4.0152,249.05,248.94,18.5959451]
[1732540576265,16.5229,249.06,248.95,18.5959451]
[1732540576697,20.538,249.06,248.93,18.5959451]
[1732540576997,20.538,249.06,248.92,23.776884]
[1732540577206,20.538,249.06,248.89,25.2157]
[1732540577207,20.538,249.06,248.89,18.5959451]
[1732540577386,20.0,249.03,248.83,43.9945451]
[1732540577591,20.0,249.03,248.83,18.5959451]
[1732540577982,20.0,248.99,248.83,18.5959451]
[1732540578680,20.0,248.99,248.81,18.5959451]
[1732540579003,4.0163,248.98,248.83,18.5959451]
[1732540579201,4.0163,248.98,248.77,22.1836]
[1732540579202,4.0163,248.98,248.85,18.5959451]
[1732540579803,4.0163,248.98,248.87,18.5959451]
[1732540580103,4.0163,248.98,248.78,11.85738644]
[1732540580104,4.0163,248.98,248.88,18.5959451]
[1732540580278,4.0163,248.98,248.84,18.5959451]
[1732540580601,4.0163,248.98,248.82,38.5959451]
[1732540580775,4.0163,248.98,248.83,18.5959451]
[1732540580981,14.0553,249.02,248.83,21.8109451]
[1732540581177,22.182,248.98,248.79,3.2154]
[1732540581484,20.0,248.95,248.76,18.5959451]
[1732540581879,23.776884,248.94,248.72,18.5959451]
[1732540582093,20.0,248.91,248.74,18.5959451]
[1732540582905,4.0178,248.89,248.74,18.5959451]
[1732540584489,4.0178,248.89,248.72,18.5959451]
[1732540584689,14.0623,248.89,248.69,18.5959451]
[1732540584904,14.0623,248.89,248.67,18.5959451]
[1732540585089,20.0,248.86,248.65,18.5959451]
[1732540585287,20.0,248.86,248.59,15.3939]
[1732540585288,20.0,248.86,248.63,18.5959451]
[1732540585491,20.0,248.82,248.63,18.5959451]
[1732540586084,34.1514,248.89,248.62,3.2177]
[1732540586085,20.0,248.86,248.67,18.5959451]
[1732540586495,20.0,248.82,248.65,18.5959451]
[1732540586811,20.0,248.78,248.63,18.5959451]
[1732540587381,6.5912,248.77,248.61,18.5959451]
[1732540587684,15.8577,248.76,248.61,18.5959451]
[1732540588287,15.8577,248.76,248.63,18.5959451]
[1732540588698,4.0201,248.75,248.63,18.5959451]
[1732540589102,4.0201,248.75,248.62,3.82064632]
[1732540589103,4.0201,248.75,248.65,18.5959451]
[1732540589310,4.0201,248.75,248.61,18.5959451]
[1732540589690,4.0201,248.75,248.63,18.5959451]
[1732540590000,4.0201,248.75,248.61,19.19900136]
[1732540590706,14.0703,248.75,248.59,18.5959451]
[1732540591014,20.0,248.72,248.55,18.5959451]
[1732540591911,4.0207,248.71,248.55,21.8145451]
[1732540592095,14.0725,248.71,248.57,23.776884]
[1732540592404,14.0725,248.71,248.55,23.776884]
[1732540592911,14.0725,248.71,248.53,19.199184]
[1732540593300,14.0725,248.71,248.53,18.5959451]
[1732540593601,14.0725,248.71,248.52,3.2189]
[1732540594206,14.0725,248.71,248.53,23.776884]
[1732540594780,14.0725,248.71,248.53,45.5917291]
[1732540594989,4.0207,248.71,248.56,23.776884]
[1732540595404,4.0207,248.71,248.56,24.38009127]
[1732540595998,4.0207,248.71,248.56,42.97603637]
[1732540596312,6.4742,248.7,248.56,42.97603637]
[1732540596686,6.4742,248.7,248.56,23.776884]
[1732540596886,6.4742,248.7,248.55,23.776884]
[1732540598107,4.021,248.69,248.55,23.776884]
[1732540599011,14.0736,248.69,248.55,23.776884]
[1732540599316,15.1242,248.68,248.53,23.776884]
[1732540599491,15.1242,248.68,248.5,19.19919146]
[1732540599692,20.0,248.65,248.46,21.8156451]
[1732540600303,14.0764,248.64,248.46,21.8156451]
[1732540600600,20.0,248.61,248.45,18.5959451]
[1732540600797,20.0,248.61,248.46,18.5959451]
[1732540601005,21.6461,248.63,248.51,18.5959451]
[1732540601182,21.6461,248.63,248.5,18.5959451]
[1732540601390,21.6461,248.63,248.49,18.5959451]
[1732540601591,21.6461,248.63,248.5,18.5959451]
[1732540601994,21.6461,248.63,248.49,18.5959451]
[1732540602197,4.0222,248.62,248.47,18.5959451]
[1732540602497,14.0777,248.62,248.46,18.5959451]
[1732540603107,14.0777,248.62,248.47,18.5959451]
[1732540603697,14.0777,248.62,248.48,23.776884]
[1732540603899,4.0222,248.62,248.52,18.5959451]
[1732540604713,4.0222,248.62,248.53,18.5959451]
[1732540605212,4.0222,248.62,248.51,18.5959451]
[1732540605393,4.0222,248.62,248.47,18.5959451]
[1732540605712,4.0222,248.62,248.5,18.5959451]
[1732540605908,4.0222,248.62,248.51,18.5959451]
[1732540606113,4.0222,248.62,248.5,18.5959451]
[1732540606417,14.0777,248.62,248.49,23.776884]
[1732540607396,20.0,248.59,248.47,23.776884]
[1732540607802,20.0,248.59,248.46,18.5959451]
[1732540607990,20.0,248.59,248.47,18.5959451]
[1732540608209,20.91701842,248.59,248.46,18.5959451]
[1732540608509,4.0228,248.58,248.46,18.5959451]
[1732540608694,4.0228,248.58,248.47,18.5959451]
[1732540608886,4.0228,248.58,248.46,3.6223]
[1732540608887,4.0228,248.58,248.49,18.5959451]
[1732540609518,4.0228,248.58,248.5,23.776884]
[1732540610692,0.91701842,248.59,248.52,18.5959451]
[1732540611008,4.93971842,248.59,248.5,42.3728291]
[1732540611188,4.93971842,248.59,248.4,18.5959451]
[1732540611189,4.93971842,248.59,248.48,18.5959451]
[1732540611895,14.99641842,248.59,248.48,18.5959451]
[1732540612286,14.99641842,248.59,248.45,18.5959451]
[1732540612507,14.99641842,248.59,248.43,38.5959451]
[1732540612712,20.0,248.56,248.43,18.5959451]
[1732540613090,15.0237,248.55,248.4,18.5959451]
[1732540613620,15.94071842,248.55,248.4,18.5959451]
[1732540614206,4.0234,248.54,248.4,18.5959451]
[1732540614397,4.0234,248.54,248.42,18.5959451]
[1732540614620,4.0234,248.54,248.45,18.5959451]
[1732540614817,4.0234,248.54,248.44,18.5959451]
[1732540615118,4.0234,248.54,248.45,23.776884]
[1732540616314,4.0234,248.54,248.37,10.0656]
[1732540616315,6.3195,248.53,248.39,18.5959451]
[1732540616905,20.0,248.49,248.34,2.08176185]
[1732540617108,20.0,248.49,248.32,22.6229451]
[1732540617409,20.0,248.49,248.34,18.5959451]
[1732540617721,4.0244,248.48,248.36,18.5959451]
[1732540617897,4.0244,248.48,248.38,18.5959451]
[1732540618924,4.0239,248.51,248.36,18.5959451]
[1732540620019,4.0239,248.51,248.37,23.776884]
[1732540620196,4.0239,248.51,248.38,18.5959451]
[1732540620398,4.0239,248.51,248.4,18.5959451]
[1732540620628,16.5916,248.52,248.44,18.5959451]
[1732540620796,16.5916,248.52,248.5,18.5959451]
[1732540620994,0.91701842,248.55,248.51,18.5959451]
[1732540621213,0.91701842,248.55,248.47,23.776884]
[1732540621423,0.91701842,248.55,248.49,18.5959451]
[1732540621600,4.0234,248.54,248.43,18.5959451]
[1732540621804,0.91701842,248.55,248.46,18.5959451]
[1732540621999,0.91701842,248.55,248.48,18.5959451]
[1732540622207,0.91701842,248.55,248.51,18.5959451]
[1732540622411,0.91701842,248.55,248.5,11.6353083]
[1732540622620,0.91701842,248.55,248.52,11.6353083]
[1732540623127,0.91701842,248.55,248.46,11.6353083]
[1732540623326,0.91701842,248.55,248.47,23.776884]
[1732540623630,4.94031842,248.55,248.46,11.6353083]
[1732540623835,4.94031842,248.55,248.44,11.6353083]
[1732540624136,4.94031842,248.55,248.41,11.6353083]
[1732540624312,4.94031842,248.55,248.42,4.0254]
[1732540624503,4.0233,248.55,248.4,20.0]
[1732540624827,24.0233,248.55,248.37,18.62909786]
[1732540625129,34.0816,248.55,248.37,22.65529786]
[1732540625427,6.1163,248.54,248.37,18.62909786]
[1732540625952,20.0,248.5,248.3,4.0273]
[1732540626132,20.0,248.46,248.29,18.62909786]
[1732540626438,14.0872,248.45,248.27,18.62909786]
[1732540626916,22.3728,248.44,248.27,18.62909786]
[1732540627113,22.3728,248.44,248.25,22.65719786]
[1732540627314,20.0,248.41,248.22,47.37726073]
[1732540627506,20.0,248.41,248.24,18.62909786]
[1732540627707,20.0,248.41,248.22,4.0286]
[1732540627915,20.0,248.41,248.22,22.65769786]
[1732540628314,4.0257,248.4,248.24,18.62909786]
[1732540628521,14.0901,248.4,248.23,23.776884]
[1732540628719,20.0,248.36,248.2,18.62909786]
[1732540629340,20.0,248.36,248.21,18.62909786]
[1732540629518,20.0,248.36,248.19,18.62909786]
[1732540630233,14.0929,248.35,248.19,18.62909786]
[1732540630410,20.0,248.32,248.2,18.62909786]
[1732540631111,4.0265,248.35,248.22,18.62909786]
[1732540631307,14.0929,248.35,248.2,18.62909786]
[1732540632339,14.0929,248.35,248.14,0.60418082]
[1732540632340,14.0929,248.35,248.22,18.62909786]
[1732540633033,20.0,248.32,248.18,18.62909786]
[1732540633334,20.0,248.32,248.18,23.776884]
[1732540633534,20.0,248.32,248.18,42.40598186]
[1732540633535,4.0272,248.31,248.18,42.40598186]
[1732540633715,14.0952,248.31,248.18,42.40598186]
[1732540634333,15.773,248.3,248.16,18.62909786]
[1732540634932,6.2024,248.29,248.16,18.62909786]
[1732540635333,4.0277,248.28,248.16,18.62909786]
[1732540636013,4.0277,248.28,248.15,18.62909786]
[1732540636211,14.0969,248.28,248.15,18.62909786]
[1732540636824,14.0969,248.28,248.16,18.62909786]
[1732540637619,14.0969,248.28,248.15,42.40598186]
[1732540637824,20.0,248.25,248.13,23.776884]
[1732540638122,20.0,248.25,248.12,18.62909786]
[1732540638433,20.0,248.25,248.15,18.62909786]
[1732540638638,14.0969,248.28,248.17,23.776884]
[1732540639009,14.0969,248.28,248.16,23.776884]
[1732540639214,4.0277,248.28,248.19,23.776884]
[1732540639520,4.0277,248.28,248.19,18.62909786]
[1732540639731,4.0277,248.28,248.2,23.776884]
[1732540640049,4.0277,248.28,248.19,23.776884]
[1732540640436,4.0277,248.28,248.17,23.776884]
[1732540640636,4.0277,248.28,248.16,23.776884]
[1732540640841,4.0277,248.28,248.13,18.62909786]
[1732540641022,4.0277,248.28,248.14,23.776884]
[1732540641217,4.0277,248.28,248.11,4.0304]
[1732540641218,4.0277,248.28,248.12,42.40598186]
[1732540641413,14.0969,248.28,248.14,23.776884]
[1732540641715,14.0969,248.28,248.12,23.776884]
[1732540641925,14.0969,248.28,248.14,23.776884]
[1732540642121,14.0969,248.28,248.16,23.776884]
[1732540642641,4.0277,248.28,248.16,23.776884]
[1732540642820,4.0277,248.28,248.17,18.62909786]
[1732540643020,4.0277,248.28,248.18,23.776884]
[1732540644041,15.773,248.3,248.18,23.776884]
[1732540644042,15.773,248.3,248.26,23.776884]
[1732540644228,10.2311,248.35,248.26,42.40598186]
[1732540644413,0.91701842,248.35,248.29,18.62909786]
[1732540644737,20.1857,248.37,248.3,23.776884]
[1732540645045,20.1857,248.37,248.28,23.776884]
[1732540645412,16.1594,248.37,248.28,23.776884]
[1732540645838,16.1594,248.37,248.3,23.776884]
[1732540646618,16.1594,248.37,248.29,18.62909786]
[1732540646619,10.0605,248.5,248.33,18.62909786]
[1732540646935,10.0605,248.5,248.34,23.776884]
[1732540647843,4.0239,248.51,248.38,23.776884]
[1732540648544,4.0239,248.51,248.37,23.776884]
[1732540648746,14.0838,248.51,248.33,23.776884]
[1732540648953,20.0,248.48,248.27,18.62909786]
[1732540649142,35.9803,248.47,248.25,18.62909786]
[1732540649345,20.0,248.43,248.23,22.65749786]
[1732540649645,15.9803,248.42,248.21,18.62909786]
[1732540649836,34.2176,248.41,248.21,18.62909786]
[1732540650041,20.0,248.38,248.21,18.62909786]
[1732540650349,20.0,248.37,248.23,18.62909786]
[1732540650525,6.1431,248.4,248.27,18.62909786]
[1732540651349,6.1431,248.4,248.29,18.62909786]
[1732540651721,10.1689,248.4,248.32,23.776884]
[1732540652241,6.1431,248.4,248.32,23.776884]
[1732540652546,10.1689,248.4,248.32,23.776884]
[1732540652916,15.9803,248.42,248.35,18.62909786]
[1732540653135,6.216,248.45,248.39,18.62909786]
[1732540653539,15.8384,248.48,248.4,23.776884]
[1732540653952,19.8629,248.48,248.4,23.776884]
[1732540654133,19.8629,248.48,248.41,18.62909786]
[1732540654333,15.8384,248.48,248.42,23.776884]
[1732540654652,10.2845,248.52,248.44,23.776884]
[1732540654828,6.2607,248.52,248.46,23.776884]
[1732540655018,10.2845,248.52,248.41,18.62909786]
[1732540655224,10.2845,248.52,248.42,23.776884]
[1732540655979,10.2845,248.52,248.32,20.0]
[1732540656150,20.0,248.49,248.33,42.40598186]
[1732540656459,20.0,248.48,248.29,18.62909786]
[1732540656837,20.0,248.48,248.31,18.62909786]
[1732540657143,20.0,248.49,248.34,18.62909786]
[1732540657655,20.344,248.52,248.34,18.62909786]
[1732540657828,20.344,248.52,248.35,23.776884]
[1732540658242,20.344,248.52,248.36,18.62909786]
[1732540658445,20.344,248.52,248.4,18.62909786]
[1732540658649,20.344,248.52,248.42,23.776884]
[1732540660353,20.344,248.52,248.38,23.776884]
[1732540660949,40.4631,248.52,248.36,23.776884]
[1732540661242,40.4631,248.52,248.37,18.62909786]
[1732540661661,40.4631,248.52,248.32,4.027]
[1732540661662,40.4631,248.52,248.35,18.62909786]
[1732540662166,20.344,248.52,248.37,18.62909786]
[1732540662335,20.344,248.52,248.35,18.62909786]
[1732540662530,40.4631,248.52,248.35,18.62909786]
[1732540662736,20.0,248.45,248.31,18.62909786]
[1732540663050,20.0,248.45,248.29,18.62909786]
[1732540663446,6.3733,248.44,248.29,18.62909786]
[1732540663847,14.0883,248.43,248.3,23.776884]
[1732540665557,20.0,248.4,248.25,18.62909786]
[1732540665742,14.0912,248.38,248.25,18.62909786]
[1732540667254,14.0912,248.38,248.26,23.776884]
[1732540668145,14.0912,248.38,248.26,18.62909786]
[1732540668465,14.0912,248.38,248.24,18.62909786]
[1732540668655,20.0,248.34,248.2,18.62909786]
[1732540668855,6.5813,248.37,248.21,18.62909786]
[1732540669031,6.5813,248.37,248.23,18.62909786]
[1732540669231,20.0,248.34,248.19,18.62909786]
[1732540669456,20.0,248.34,248.16,18.62909786]
[1732540669645,20.0,248.3,248.14,18.62909786]
[1732540670357,14.0963,248.29,248.14,18.62909786]
[1732540670539,6.5813,248.28,248.14,18.62909786]
[1732540671237,6.5813,248.28,248.12,18.62909786]
[1732540671740,20.0,248.24,248.12,18.62909786]
[1732540672139,20.0,248.24,248.13,18.62909786]
[1732540672338,4.0285,248.23,248.13,18.62909786]
[1732540672843,4.0285,248.23,248.16,18.62909786]
[1732540673039,4.0285,248.23,248.17,42.40598186]
[1732540673258,15.4509,248.27,248.17,42.40598186]
[1732540673259,4.0283,248.25,248.19,23.776884]
[1732540673557,4.0283,248.25,248.18,23.776884]
[1732540674068,4.0283,248.25,248.19,18.62909786]
[1732540674445,4.0283,248.25,248.18,23.776884]
[1732540675249,4.0283,248.25,248.17,23.776884]
[1732540676357,4.0283,248.25,248.14,23.776884]
[1732540676539,4.0283,248.25,248.11,18.62909786]
[1732540677162,4.0283,248.25,248.12,18.62909786]
[1732540677746,4.0283,248.25,248.13,18.62909786]
[1732540678156,4.0283,248.25,248.14,18.62909786]
[1732540678344,4.0283,248.25,248.17,23.776884]
[1732540678562,19.4789,248.27,248.18,18.62909786]
[1732540678864,19.4789,248.27,248.19,23.776884]
[1732540679066,19.4789,248.27,248.18,23.776884]
[1732540679441,29.5485,248.27,248.18,23.776884]
[1732540679641,29.5485,248.27,248.17,23.776884]
[1732540679843,29.5485,248.27,248.16,23.776884]
[1732540680369,29.5485,248.27,248.16,42.40598186]
[1732540680548,19.4789,248.27,248.18,18.62909786]
[1732540680744,19.4789,248.27,248.16,42.40598186]
[1732540680948,19.4789,248.27,248.18,23.776884]
[1732540681448,19.4789,248.27,248.21,23.776884]
[1732540681643,15.9168,248.33,248.21,42.40598186]
[1732540681845,15.9168,248.33,248.24,18.62909786]
[1732540682148,15.9168,248.33,248.25,23.776884]
[1732540682542,15.9168,248.33,248.24,23.776884]
[1732540682748,15.9168,248.33,248.18,23.776884]
[1732540682967,15.9168,248.33,248.17,23.776884]
[1732540683154,20.0,248.3,248.16,23.776884]
[1732540683555,20.0,248.3,248.15,18.62909786]
[1732540683856,14.0963,248.29,248.14,18.62909786]
[1732540684476,14.0963,248.29,248.15,18.62909786]
[1732540684687,4.0275,248.29,248.21,18.62909786]
[1732540684851,4.0275,248.29,248.2,18.62909786]
[1732540685370,4.0275,248.29,248.2,23.776884]
[1732540685569,4.0275,248.29,248.22,23.776884]
[1732540685777,10.0686,248.3,248.2,23.776884]
[1732540685945,10.0686,248.3,248.16,18.62909786]
[1732540686148,10.0686,248.3,248.15,23.776884]
[1732540686564,10.0686,248.3,248.15,42.40598186]
[1732540686869,21.2174,248.29,248.12,18.62909786]
[1732540687079,20.0,248.26,248.09,18.62909786]
[1732540687270,16.2806,248.25,248.07,18.62909786]
[1732540687455,16.2806,248.25,248.08,18.62909786]
[1732540687650,16.2806,248.25,248.07,18.62909786]
[1732540687961,14.0991,248.24,248.08,18.62909786]
[1732540688146,6.3725,248.23,248.07,18.62909786]
[1732540688549,6.3725,248.23,248.09,18.62909786]
[1732540688965,6.3725,248.23,248.1,23.776884]
[1732540689172,6.3725,248.23,248.1,42.40598186]
[1732540689461,14.1003,248.22,248.1,23.776884]
[1732540690058,14.1003,248.22,248.09,42.40598186]
[1732540690361,20.0,248.19,248.04,18.62909786]
[1732540690574,20.0,248.19,248.0,15.6831]
[1732540690575,20.0,248.19,248.06,18.62909786]
[1732540690977,20.0,248.19,248.08,18.62909786]
[1732540691277,20.0,248.19,247.94,1.97235339]
[1732540691278,14.1065,248.11,247.94,1.97235339]
[1732540691483,14.1065,248.11,248.0,18.62909786]
[1732540691484,4.0304,248.11,248.0,18.62909786]
[1732540691869,4.0304,248.11,247.98,18.62909786]
[1732540692194,14.1065,248.11,247.96,18.62909786]
[1732540692360,14.1065,248.11,247.94,18.62909786]
[1732540692562,6.1572,248.1,247.94,18.62909786]
[1732540692763,6.1572,248.1,247.92,18.62909786]
[1732540692967,6.1572,248.1,247.84,16.108171]
[1732540692968,15.7824,248.06,247.9,18.62909786]
[1732540693273,14.11,248.05,247.9,18.62909786]
[1732540694387,14.11,248.05,247.88,18.62909786]
[1732540694586,14.11,248.05,247.9,18.62909786]
[1732540695496,6.2859,248.04,247.87,18.62909786]
[1732540695693,6.2859,248.04,247.85,18.62909786]
[1732540695694,16.2859,248.04,247.85,18.62909786]
[1732540695865,6.2859,248.04,247.83,18.62909786]
[1732540696190,20.0,248.01,247.83,18.62909786]
[1732540696392,16.2859,248.04,247.83,18.62909786]
[1732540696393,20.0,247.99,247.83,18.62909786]
[1732540696688,20.0,247.97,247.83,18.62909786]
[1732540696895,20.0,248.0,247.85,18.62909786]
[1732540697188,14.1111,248.03,247.87,18.62909786]
[1732540698665,14.1111,248.03,247.86,18.62909786]
[1732540698868,14.1111,248.03,247.87,18.62909786]
[1732540700264,20.0,248.0,247.87,18.62909786]
[1732540700884,14.1111,248.03,247.89,18.62909786]
[1732540701868,14.1111,248.03,247.9,18.62909786]
[1732540702492,4.0317,248.03,247.97,18.62909786]
[1732540702901,4.0317,248.03,247.94,18.62909786]
[1732540703196,4.0317,248.03,247.95,18.62909786]
[1732540704297,14.1111,248.03,247.91,18.62909786]
[1732540705887,14.1111,248.03,247.93,18.62909786]
[1732540706578,14.1111,248.03,247.91,18.62909786]
[1732540707094,14.1111,248.03,247.89,18.62909786]
[1732540707393,20.0,248.0,247.89,18.62909786]
[1732540707567,4.0324,247.99,247.89,18.62909786]
[1732540708292,16.568,247.98,247.85,18.62909786]
[1732540709193,6.3553,247.97,247.85,18.62909786]
[1732540709565,14.1151,247.96,247.83,18.62909786]
[1732540711100,4.0329,247.96,247.89,18.62909786]
[1732540711299,4.0329,247.96,247.87,18.62909786]
[1732540712164,4.0329,247.96,247.85,18.62909786]
[1732540712794,4.0329,247.96,247.86,18.62909786]
[1732540715773,4.0329,247.96,247.84,18.62909786]
[1732540715983,6.3553,247.97,247.87,18.62909786]
[1732540716301,6.3553,247.97,247.89,18.62909786]
[1732540717706,10.3881,247.97,247.87,18.62909786]
[1732540718007,10.3881,247.97,247.85,18.62909786]
[1732540720499,10.3881,247.97,247.85,22.66369786]
[1732540720703,10.3881,247.97,247.85,18.62909786]
[1732540720906,10.3881,247.97,247.83,18.62909786]
[1732540721078,20.4699,247.97,247.83,18.62909786]
[1732540721408,20.4699,247.97,247.81,18.62909786]
[1732540722280,20.4699,247.97,247.81,11.69932516]
[1732540723003,20.4699,247.97,247.8,4.0354]
[1732540723307,20.0,247.94,247.79,16.82112516]
[1732540723479,20.0,247.94,247.79,20.85662516]
[1732540723683,20.0,247.94,247.81,11.69932516]
[1732540724205,20.0,247.94,247.79,9.1573]
[1732540724206,20.0,247.94,247.79,5.1218]
[1732540725298,4.0333,247.93,247.79,5.1218]
[1732540725598,4.0333,247.93,247.79,16.82112516]
[1732540726201,14.1167,247.93,247.79,5.1218]
[1732540726902,14.1167,247.93,247.79,16.82112516]
[1732540728603,4.0333,247.93,247.81,11.69932516]
[1732540729306,4.0333,247.93,247.79,16.82112516]
[1732540729680,14.1167,247.93,247.79,16.82112516]
[1732540730509,14.1167,247.93,247.79,5.1218]
[1732540730510,4.0333,247.93,247.79,5.1218]
[1732540731082,20.0,247.9,247.79,5.1218]
[1732540732384,4.034,247.89,247.79,5.1218]
[1732540732994,4.034,247.89,247.79,9.1574]
[1732540733614,20.0,247.93,247.79,5.1218]
[1732540734294,14.1173,247.92,247.79,5.1218]
[1732540735612,15.531,247.91,247.79,5.1218]
[1732540735988,6.076,247.9,247.79,5.1218]
[1732540736384,4.034,247.89,247.79,5.1218]
[1732540738691,14.1191,247.89,247.79,5.1218]
[1732540740221,20.0,247.86,247.79,5.1218]
[1732540740393,4.0346,247.85,247.79,5.1218]
[1732540741721,14.1213,247.85,247.79,5.1218]
[1732540742213,4.0346,247.85,247.79,5.1218]
[1732540742398,14.1193,247.89,247.79,5.1218]
[1732540742812,4.034,247.89,247.79,5.1218]
[1732540743010,4.034,247.89,247.79,9.1574]
[1732540743220,4.034,247.89,247.79,5.1218]
[1732540743531,14.1191,247.89,247.79,5.1218]
[1732540744718,4.034,247.89,247.79,5.1218]
[1732540746630,4.0339,247.9,247.79,9.1574]
[1732540746825,4.0339,247.9,247.79,5.1218]
[1732540747125,4.0339,247.9,247.79,9.1574]
[1732540747304,19.5647,247.91,247.79,9.1574]
[1732540747497,6.5787,247.95,247.8,11.69932516]
[1732540747698,4.0329,247.96,247.8,11.69932516]
[1732540748221,16.0422,247.97,247.82,31.69932516]
[1732540748423,16.0422,247.97,247.84,11.69932516]
[1732540748628,6.4669,248.0,247.91,11.69932516]
[1732540748833,4.0312,248.06,247.96,11.69932516]
[1732540749001,4.0312,248.06,247.98,11.69932516]
[1732540749201,4.0306,248.1,247.98,11.69932516]
[1732540749422,4.0306,248.1,247.97,11.69932516]
[1732540749719,14.1071,248.1,247.9,11.69932516]
[1732540749930,14.1071,248.1,247.89,11.69932516]
[1732540750139,10.0,248.07,247.84,15.5096]
[1732540750336,10.0,248.07,247.83,15.73432516]
[1732540750510,23.776884,248.03,247.82,11.69932516]
[1732540750713,23.143,248.04,247.87,11.69932516]
[1732540750934,23.143,248.04,247.85,11.69932516]
[1732540751236,20.0,248.0,247.82,4.0351]
[1732540751426,20.0,248.0,247.83,11.69932516]
[1732540751735,20.0,248.0,247.84,11.69932516]
[1732540751943,4.0324,247.99,247.85,11.69932516]
[1732540752149,4.0324,247.99,247.88,11.69932516]
[1732540752319,4.0324,247.99,247.88,18.71072325]
[1732540752634,4.0317,248.03,247.89,18.71072325]
[1732540752817,14.1111,248.03,247.86,18.71072325]
[1732540753021,14.1111,248.03,247.85,18.71072325]
[1732540753938,14.1111,248.03,247.85,22.74532325]
[1732540754142,14.1111,248.03,247.86,18.71072325]
[1732540754439,14.1111,248.03,247.84,18.71072325]
[1732540754824,20.0,248.0,247.82,18.71072325]
[1732540755427,20.0,248.0,247.84,18.71072325]
[1732540755626,14.1111,248.03,247.88,18.71072325]
[1732540755841,14.1111,248.03,247.88,22.74482325]
[1732540756744,14.1111,248.03,247.87,18.71072325]
[1732540758050,4.0317,248.03,247.91,18.71072325]
[1732540759247,14.1111,248.03,247.89,18.71072325]
[1732540759431,14.1111,248.03,247.85,22.74522325]
[1732540759742,14.1111,248.03,247.86,22.74522325]
[1732540759921,14.1111,248.03,247.89,18.71072325]
[1732540760249,4.0317,248.03,247.93,18.71072325]
[1732540761327,4.0317,248.03,247.92,18.71072325]
[1732540761628,4.0317,248.03,247.92,22.74422325]
[1732540761816,4.0317,248.03,247.9,22.74442325]
[1732540762020,4.0317,248.03,247.88,18.71072325]
[1732540762447,14.1111,248.03,247.88,18.71072325]
[1732540762941,14.1111,248.03,247.86,22.74512325]
[1732540763127,14.1111,248.03,247.84,18.71072325]
[1732540763325,14.1111,248.03,247.85,4.0346]
[1732540764327,14.1111,248.03,247.86,18.71072325]
[1732540765530,14.1111,248.03,247.84,18.71072325]
[1732540766338,14.1111,248.03,247.88,18.71072325]
[1732540767529,14.1111,248.03,247.88,22.74482325]
[1732540767729,14.1111,248.03,247.86,22.74512325]
[1732540768154,34.2699,248.03,247.82,38.71072325]
[1732540768661,14.1111,248.03,247.86,18.71072325]
[1732540769260,14.1111,248.03,247.82,20.0]
[1732540769261,14.1111,248.03,247.88,18.71072325]
[1732540769429,14.1111,248.03,247.88,22.74482325]
[1732540769631,14.1111,248.03,247.86,22.74522325]
[1732540770448,14.1111,248.03,247.88,18.71072325]
[1732540770661,4.0317,248.03,247.93,18.71072325]
[1732540770832,4.0316,248.05,247.93,18.71072325]
[1732540771034,4.0316,248.05,247.95,18.71072325]
[1732540771248,4.0307,248.09,247.97,18.71072325]
[1732540771638,4.0307,248.09,247.99,18.71072325]
[1732540772154,25.5966,248.1,247.99,18.71072325]
[1732540772363,25.5966,248.1,247.95,18.71072325]
[1732540772959,25.5966,248.1,247.97,18.71072325]
[1732540773146,25.5966,248.1,247.99,18.71072325]
[1732540773558,25.5966,248.1,248.0,4.0322]
[1732540773849,10.0737,248.17,248.03,18.71072325]
[1732540774057,4.0293,248.18,248.05,18.71072325]
[1732540774436,4.0293,248.18,248.06,11.67717386]
[1732540775654,35.7351,248.3,248.1,11.67717386]
[1732540776081,2.93059216,248.29,248.08,11.67717386]
[1732540776260,2.93059216,248.29,248.1,11.67717386]